[Event "53rd Mar Del Plata Open 2024"]
[Site "Mar Del Plata"]
[Date "2024.03.27"]
[Round "5.10"]
[White "Felgaer, Ruben"]
[Black "Caruso, Tomas"]
[Result "1-0"]
[ECO "B47"]
[WhiteElo "2565"]
[BlackElo "2139"]
[Annotator "TA"]
[PlyCount "55"]
[EventDate "2024.03.23"]
[EventType "swiss"]
[EventCountry "ARG"]
[SourceTitle "playchess.com"]
[Source "ChessBase"]
[SourceQuality "1"]
[TimeControl "5400+30"]

{[%evp 17,55,0,0,0,6,16,8,16,81,56,167,141,204,154,148,121,133,131,122,72,71,107,96,81,79,24,272,288,279,267,264,222,1534,1333,29990,29991,29991,29992,29995,29996]} 1. e4 {[%emt 0:00:08]} c5 {[%emt 0:00:02]} 2. Nf3 {[%emt 0:00:44]} e6 {[%emt 0:00:02]} 3. d4 {[%emt 0:00:08]} cxd4 {[%emt 0:00:02]} 4. Nxd4 {[%emt 0:00:10]} Nc6 {[%emt 0:00:06]} 5. Nc3 {[%emt 0:00:47]} Qc7 {[%emt 0:00:02]} 6. Be2 {[%emt 0:01:23]} a6 {[%emt 0:00:23]} 7. O-O {[%emt 0:00:20]} Nf6 {[%emt 0:00:24]} 8. Kh1 {[%emt 0:03:14]} Nxd4 {[%emt 0:10:31]} 9. Qxd4 {[%emt 0:00:09]} Bc5 {[%emt 0:00:42]} 10. Qd2 {[%emt 0:03:26]} h6 {[%emt 0:12:18] Pariert Qg5.} 11. f4 {[%emt 0:01:28] Und jetzt e5 wäre schön.} d6 {[%emt 0:05:56][%cal Bd7d6,Bd6d5][%mdl 32]} 12. Qd3 {[%emt 0:04:27] Die Stellung ist ausgeglichen.} b5 {[%emt 0:15:16]} (12... O-O $1 $11 {hält das Gleichgewicht.}) 13. Qg3 {[%emt 0:07:05]} Rg8 {[%emt 0:02:53]} ({Besser ist} 13... O-O $14) 14. e5 $18 {[%emt 0:04:33]} Nd7 {[%emt 0:01:49]} (14... Nd5 $16) 15. a4 {[%emt 0:22:57]} b4 {[%emt 0:07:18]} 16. Ne4 {[%emt 0:06:11] Droht stark f5. Weiß steht aktiver.} d5 {[%emt 0:03:02]} 17. Nxc5 {[%emt 0:00:21]} Nxc5 {[%emt 0:01:07]} 18. Bd3 {[%emt 0:01:03]} ({Vorzuziehen ist} 18. c4) 18... Nxd3 $16 {[%emt 0:09:22]} 19. cxd3 {[%emt 0:01:49]} Qc2 {[%emt 0:06:28] [#]} 20. f5 $1 {[%emt 0:15:53]} exf5 {[%emt 0:05:42]} 21. Bxh6 {[%emt 0:00:46]} (21. e6 $1 $16) 21... Qxb2 $2 {[%emt 0:03:05] [#] Das Aus für Schwarz.} (21... Be6 $1 $11) 22. Bg5 $1 $18 {[%emt 0:10:41]} (22. Bxg7 Be6 23. Qh4 b3 $17) 22... Qd4 {[%emt 0:02:25] [#]} 23. e6 $1 {[%emt 0:05:44][%mdl 512]} fxe6 {[%emt 0:03:45]} (23... Bxe6 $2 {verliert.} 24. Qd6 Qa7 25. Qc6+ (25. Qxb4 f6 $15) 25... Kf8 26. Be3 $18 (26. Qd6+ Ke8 $18)) 24. Rac1 $40 {[%emt 0:02:53][%cal Oc1c8][%mdl 128] Beabsichtigt Rxc8+! und Matt. Weiss riecht Blut.} Qb6 $2 {[%emt 0:05:52]} (24... Qg4) 25. Be3 {[%emt 0:01:05] Weiss will mit Qg6+ Matt setzen.} d4 {[%emt 0:02:24]} 26. Qg6+ {[%emt 0:00:05] Weiß setzt Matt.} Ke7 {[%emt 0:00:04]} 27. Bg5+ {[%emt 0:00:54]} Kd6 {[%emt 0:00:49]} 28. Rxf5 {[%emt 0:00:55] Gewichteter Fehlerwert: Weiß=0.16 (sehr präzise) /Schwarz=0.59.  Verlustzug:     	---       	Schwarz=1     Fehler:       	Weiß=2     	Schwarz=4     Ungenau:       	---       	Schwarz=1     OK:         	Weiß=4     	Schwarz=4     Bester:       	---       	Schwarz=3     Stark:        	Weiß=1     	---        Brilliant:      	Weiß=2     	---} 1-0

[Event "53rd Mar Del Plata Open 2024"]
[Site "Mar Del Plata"]
[Date "2024.03.28"]
[Round "6.1"]
[White "Christiansen, Johan-Sebastian"]
[Black "Flores, Diego"]
[Result "1-0"]
[ECO "B40"]
[WhiteElo "2633"]
[BlackElo "2530"]
[Annotator "TA"]
[PlyCount "75"]
[EventDate "2024.03.23"]
[EventType "swiss"]
[EventCountry "ARG"]
[SourceTitle "playchess.com"]
[Source "ChessBase"]
[SourceQuality "1"]
[TimeControl "5400+30"]

{[%evp 9,75,8,3,0,10,0,12,11,33,37,20,32,93,63,164,161,153,187,215,208,214,210,232,224,237,196,217,213,217,211,208,210,212,214,243,243,389,410,475,487,446,330,401,365,375,332,396,389,410,397,540,544,534,550,637,639,743,723,984,947,895,858,862,812,879,874,856,836]} 1. e4 {[%emt 0:07:32]} c5 {[%emt 0:01:23]} 2. Nf3 {[%emt 0:00:14]} e6 {[%emt 0:00:24]} 3. Nc3 {[%emt 0:01:21]} a6 {[%emt 0:01:33]} 4. Be2 {[%emt 0:01:41]} b5 {[%emt 0:01:52]} 5. O-O {[%emt 0:04:51]} Bb7 {[%emt 0:02:25]} 6. d4 {[%emt 0:00:07]} cxd4 {[%emt 0:01:39]} 7. Qxd4 {[%emt 0:00:08]} Nc6 {[%emt 0:11:07]} 8. Qe3 {[%emt 0:00:06] The position is equal.} Qb8 {[%emt 0:00:29]} 9. Rd1 {[%emt 0:00:36]} Nf6 {[%emt 0:07:48]} 10. a4 {[%emt 0:12:32]} Nb4 {[%emt 0:12:02]} (10... b4 $14 11. Nd5 exd5 12. exd5+ Ne7) 11. Qd2 $16 {[%emt 0:03:58] aiming for e5.} (11. axb5 Nxc2 12. Qd3 Nxa1 $17) 11... bxa4 {[%emt 0:20:19]} (11... Nc6 $1 $14) 12. e5 $18 {[%emt 0:02:58]} ({Not} 12. Nxa4 Bxe4 13. c4 Be7 $17) (12. Rxa4 $6 Bc6 $14) 12... Nfd5 {[%emt 0:00:11]} 13. Nxa4 {[%emt 0:08:24] c4 is the strong threat.} ({But not} 13. Rxa4 a5 $16) 13... Bc8 {[%emt 0:02:23]} 14. Nd4 {[%emt 0:13:06]} Be7 {[%emt 0:07:31] [#]} 15. Bf3 $1 {[%emt 0:05:20]} O-O {[%emt 0:05:02]} 16. c4 {[%emt 0:02:38]} Nc7 {[%emt 0:00:58]} 17. Bxa8 {[%emt 0:01:09]} Nxa8 {[%emt 0:00:15]} 18. Qe2 {[%emt 0:00:26]} Nb6 {[%emt 0:02:04]} 19. Nc3 {[%emt 0:05:16]} Bb7 {[%emt 0:02:13]} 20. Bf4 {[%emt 0:03:14]} Qa8 {[%emt 0:03:24]} 21. f3 {[%emt 0:00:26]} Kh8 {[%emt 0:01:09]} 22. b3 {[%emt 0:01:42]} f5 {[%emt 0:02:39]} (22... Qb8 $142 23. Ne4 Kg8) 23. exf6 {[%emt 0:05:54]} gxf6 {[%emt 0:00:54]} 24. Nf5 {[%emt 0:04:09]} Rg8 {[%emt 0:01:07]} 25. Ng3 {[%emt 0:05:02]} ({And not} 25. Nxe7 Bxf3 26. Nxg8 Bxe2 $14) 25... Bc6 {[%emt 0:06:42]} 26. Bd6 {[%emt 0:05:05]} Bxd6 {[%emt 0:00:23]} 27. Rxd6 {[%emt 0:00:01]} Nc8 {[%emt 0:00:07][%cal Bb6c8,Bc8e7,Be7g6,Bg6e5,Be5g4][%mdl 32]} 28. Rd2 {[%emt 0:00:24]} Ne7 {[%emt 0:00:18]} 29. Qe3 {[%emt 0:00:13] Black must now prevent Qc5.} Ng6 {[%emt 0:00:28]} 30. Nce4 {[%emt 0:03:04] White is clearly winning.} Qf8 {[%emt 0:02:17]} 31. Qc3 {[%emt 0:00:07]} Ne5 {[%emt 0:01:04]} 32. f4 {[%emt 0:02:12]} Ng4 {[%emt 0:00:57]} 33. Nd6 {[%emt 0:01:14]} a5 {[%emt 0:01:45]} 34. Rxa5 {[%emt 0:00:17]} Qb8 {[%emt 0:00:19]} 35. Rh5 {[%emt 0:01:42]} Qa7+ {[%emt 0:00:48]} 36. c5 {[%emt 0:00:06]} Nd5 {[%emt 0:01:44] [#]} 37. Rhxd5 $1 {[%emt 0:00:10]} Bxd5 {[%emt 0:00:12]} 38. h3 {[%emt 0:00:04] White took control after the opening.   Weighted Error Value: White=0.08 (flawless) /Black=0.33.  Mistake:       	---       	Black=3      Inaccurate:     	---       	Black=1      OK:         	White=19    	Black=11     Best:        	White=2     	Black=2} 1-0

[Event "53rd Mar Del Plata Open 2024"]
[Site "Mar Del Plata"]
[Date "2024.03.27"]
[Round "6.2"]
[White "Romero Barreto, Jaime Jose"]
[Black "Felgaer, Ruben"]
[Result "0-1"]
[ECO "B40"]
[WhiteElo "2320"]
[BlackElo "2565"]
[Annotator "TA"]
[PlyCount "40"]
[EventDate "2024.03.23"]
[EventType "swiss"]
[EventCountry "ARG"]
[SourceTitle "playchess.com"]
[Source "ChessBase"]
[SourceQuality "1"]
[TimeControl "5400+30"]

{[%evp 9,40,0,17,18,19,0,0,0,0,0,0,0,0,-21,-12,-39,-27,-27,-17,-18,-20,-22,-22,-29,-33,-343,-291,-368,-369,-361,-366,-366,-366]} 1. e4 {[%emt 0:00:09]} c5 {[%emt 0:00:28]} 2. Nf3 {[%emt 0:00:29]} e6 {[%emt 0:00:53]} 3. g3 {[%emt 0:03:41]} Nc6 {[%emt 0:00:39]} 4. Bg2 {[%emt 0:00:06]} Nf6 {[%emt 0:01:21]} 5. Qe2 {[%emt 0:00:18]} e5 {[%emt 0:01:27]} 6. O-O {[%emt 0:03:16]} Be7 {[%emt 0:00:12]} 7. c3 {[%emt 0:01:03]} O-O {[%emt 0:00:56]} 8. Na3 {[%emt 0:00:38] The position is equal.} Re8 {[%emt 0:01:13]} 9. d3 {[%emt 0:05:19]} h6 {[%emt 0:00:21]} 10. Nc4 {[%emt 0:02:06]} Bf8 {[%emt 0:00:07]} 11. Ne3 {[%emt 0:04:21]} d5 {[%emt 0:04:39]} 12. Nh4 {[%emt 0:02:54]} d4 {[%emt 0:00:36]} 13. Nd5 {[%emt 0:02:58]} Nxd5 {[%emt 0:00:23]} 14. exd5 {[%emt 0:00:11]} Ne7 {[%emt 0:00:17]} 15. c4 {[%emt 1:10:31][%cal Of2f4]} a5 {[%emt 1:24:28]} 16. Re1 {[%emt 0:00:30][%cal Oe2h5]} g5 $36 {[%emt 0:00:00][%mdl 2048] Black has some pressure.} 17. Bxg5 {[%emt 0:00:00][%mdl 8192] Now White is beyond hope.} hxg5 $19 18. Qxe5 {[%emt 0:01:00]} gxh4 {[%emt 0:00:00] Black is winning.} 19. d6 {[%emt 0:00:30] [#]} Ra6 $1 {[%emt 0:00:00]} 20. dxe7 {[%emt 0:00:00]} Qxe7 {[%emt 0:02:30] Weighted Error Value: White=0.45/Black=0.03 (flawless) .  Loses game:     	White=1     	---        Inaccurate:     	White=1     	---        OK:         	White=3     	Black=5      Best:        	White=3     	---} 0-1

[Event "53rd Mar Del Plata Open 2024"]
[Site "Mar Del Plata"]
[Date "2024.03.28"]
[Round "6.3"]
[White "Kiselev, Vitalii"]
[Black "Coro, Lucas"]
[Result "0-1"]
[ECO "B06"]
[WhiteElo "2519"]
[BlackElo "2316"]
[Annotator "TA"]
[PlyCount "94"]
[EventDate "2024.03.23"]
[EventType "swiss"]
[EventCountry "ARG"]
[SourceTitle "playchess.com"]
[Source "ChessBase"]
[SourceQuality "1"]
[TimeControl "5400+30"]

{[%evp 14,94,22,12,34,24,22,-3,-4,0,10,0,0,-21,0,0,0,0,22,0,22,-51,36,23,23,19,51,27,45,27,15,0,25,0,11,0,20,27,14,23,57,62,60,61,53,44,72,58,58,68,69,32,32,32,42,0,0,0,0,0,0,0,0,-91,-91,-196,-196,-196,-196,-419,-409,-670,-644,-6507,-5971,-6550,-6756,-6550,-6550,-5751,-5714,-5839,-5839]} 1. e4 {[%emt 0:21:57]} g6 {[%emt 0:02:03]} 2. d4 {[%emt 0:01:04]} Bg7 {[%emt 0:00:19]} 3. Nc3 {[%emt 0:00:52]} d6 {[%emt 0:00:48]} 4. Be3 {[%emt 0:00:19]} a6 {[%emt 0:01:32]} 5. h4 {[%emt 0:04:53]} h5 {[%emt 0:10:44]} 6. Nh3 {[%emt 0:06:51] B06: Modern Defence.} Bxh3 {[%emt 0:06:24]} 7. Rxh3 {[%emt 0:00:05]} Nd7 {[%emt 0:00:08]} 8. Qd2 {[%emt 0:02:34] The old main line.} Ngf6 {[%emt 0:01:18]} 9. f3 {[%emt 0:06:52]} c6 {[%emt 0:08:54]} 10. a3 {[%emt 0:07:52]} b5 {[%emt 0:03:23]} 11. Be2 {[%emt 0:08:26]} Qc8 {[%emt 0:03:40]} 12. Rd1 $146 {[%emt 0:06:22]} ({Predecessor:} 12. Rh1 a5 13. Nd1 Qb7 14. Nf2 c5 15. dxc5 Nxc5 16. Nd3 Ne6 17. Nf4 Nxf4 18. Bxf4 {1-0 Jakubowska,A (2085)-Leskiewicz,I (2138) Ustron op-B 2021 (4)}) 12... c5 {[%emt 0:21:44]} 13. Kf1 {[%emt 0:00:23]} O-O {[%emt 0:00:32]} 14. d5 {[%emt 0:00:54]} Re8 {[%emt 0:01:33]} 15. Rh1 {[%emt 0:01:55]} Rb8 {[%emt 0:00:20]} 16. b3 {[%emt 0:01:44]} Qc7 {[%emt 0:00:15]} 17. Bh6 {[%emt 0:06:36]} ({White should play} 17. g3 $11) 17... Bh8 {[%emt 0:02:01]} (17... Bxh6 $15 18. Qxh6 Qa5) 18. g3 {[%emt 0:03:38]} Rec8 {[%emt 0:04:43]} 19. Kg2 {[%emt 0:00:50]} Ne5 {[%emt 0:01:14]} 20. Bf4 {[%emt 0:01:08]} Nfd7 {[%emt 0:01:21]} 21. Be3 {[%emt 0:03:56]} b4 {[%emt 0:01:35]} 22. Nb1 {[%emt 0:00:17]} c4 {[%emt 0:01:52]} 23. axb4 {[%emt 0:00:12]} Qb7 {[%emt 0:02:44]} 24. Rc1 {[%emt 0:07:11]} Qxb4 {[%emt 0:06:17]} 25. Qxb4 {[%emt 0:00:09]} Rxb4 {[%emt 0:00:05]} 26. Nd2 {[%emt 0:00:09]} c3 {[%emt 0:00:26]} 27. Nf1 {[%emt 0:02:06]} a5 {[%emt 0:04:20]} 28. Ra1 {[%emt 0:00:03]} Ra8 {[%emt 0:04:07]} 29. Bg5 {[%emt 0:00:08]} f6 {[%emt 0:00:23]} 30. Bf4 {[%emt 0:00:35]} a4 {[%emt 0:01:33]} 31. Ne3 {[%emt 0:01:19]} Nc5 {[%emt 0:01:28]} 32. bxa4 {[%emt 0:02:36]} Raxa4 {[%emt 0:01:36]} 33. Rxa4 {[%emt 0:00:30]} Rxa4 {[%emt 0:00:29]} 34. Kf2 {[%emt 0:01:35]} Ra2 {[%emt 0:01:40]} 35. Bxe5 {[%emt 0:00:04]} fxe5 {[%emt 0:00:39]} 36. Bc4 {[%emt 0:00:20]} Rb2 {[%emt 0:00:15]} 37. Ra1 {[%emt 0:01:10]} Bg7 {[%emt 0:00:06]} 38. Ra2 {[%emt 0:01:15]} (38. Ra3 $11) 38... Nd3+ $1 $17 {[%emt 0:01:19]} 39. Kg2 {[%emt 0:00:27] [#]} (39. Kg1 $17 Nb4 40. Ra3) 39... Nb4 $1 $19 {[%emt 0:00:27]} 40. Ra8+ {[%emt 0:00:28] [#]} Kf7 $1 {[%emt 0:00:14]} 41. Bb3 $2 {[%emt 0:00:18]} (41. Kh3 {was worth a try.}) 41... Bh6 $19 {[%emt 0:00:06]} 42. Rb8 {[%emt 0:00:36]} (42. f4 $142 exf4 43. gxf4 Bxf4 44. Kf3 Bxe3 45. Kxe3 Nxc2+ 46. Bxc2 Rxc2 47. Kd3) 42... Rxb3 $19 {[%emt 0:06:53]} 43. cxb3 {[%emt 0:00:25]} Bxe3 {[%emt 0:00:00]} (43... c2 44. Nxc2 Nxc2 45. b4 $11) 44. Rxb4 {[%emt 0:00:04]} c2 {[%emt 0:00:00]} 45. Rc4 {[%emt 0:00:03]} c1=Q {[%emt 0:00:00]} ({Weaker is} 45... c1=B 46. Rc8 $11) 46. Rxc1 {[%emt 0:00:03]} Bxc1 {[%emt 0:00:00]} 47. g4 {[%emt 0:00:38]} Ke8 {[%emt 0:00:00]} 0-1

[Event "53rd Mar Del Plata Open 2024"]
[Site "Mar Del Plata"]
[Date "2024.03.28"]
[Round "6.4"]
[White "Villegas, Franco"]
[Black "Menna Barreto, Felipe Kubiaki"]
[Result "1-0"]
[ECO "C41"]
[WhiteElo "2328"]
[BlackElo "2273"]
[Annotator "RC"]
[PlyCount "77"]
[EventDate "2024.03.23"]
[EventType "swiss"]
[EventCountry "ARG"]
[SourceTitle "playchess.com"]
[Source "ChessBase"]
[SourceQuality "1"]
[TimeControl "5400+30"]

1. e4 {[%emt 0:00:17]} d6 {[%emt 0:00:08]} 2. d4 {[%emt 0:00:20]} Nf6 {[%emt 0:00:11]} 3. Nc3 {[%emt 0:00:23]} e5 {[%emt 0:00:15]} 4. Nf3 {[%emt 0:00:24]} Nbd7 {[%emt 0:00:11]} 5. Bc4 {[%emt 0:00:37]} Be7 {[%emt 0:00:11]} 6. O-O {[%emt 0:00:24]} O-O {[%emt 0:00:10]} 7. Re1 {[%emt 0:00:42]} c6 {[%emt 0:00:34]} 8. a4 {[%emt 0:00:46]} b6 {[%emt 0:01:30]} 9. Ba2 {[%emt 0:01:13]} a6 {[%emt 0:03:03]} 10. h3 {[%emt 0:04:41]} Rb8 {[%emt 0:03:19]} 11. Qe2 {[%emt 0:10:25]} b5 {[%emt 0:07:25]} 12. axb5 {[%emt 0:00:33]} axb5 {[%emt 0:01:15]} 13. b4 {[%emt 0:00:28]} Qc7 {[%emt 0:08:14]} 14. Be3 {[%emt 0:10:01]} Nb6 {[%emt 0:14:21]} 15. Bb3 {[%emt 0:05:31]} h6 {[%emt 0:07:10]} 16. Ra2 {[%emt 0:12:08]} Re8 {[%emt 0:02:47]} 17. Rea1 {[%emt 0:00:42]} Bf8 {[%emt 0:00:58]} 18. d5 {[%emt 0:04:21]} Bd7 {[%emt 0:07:52]} 19. Qd3 {[%emt 0:23:32]} Na4 {[%emt 0:14:07]} 20. dxc6 {[%emt 0:04:48]} Bxc6 {[%emt 0:02:34]} 21. Bxa4 {[%emt 0:01:24]} bxa4 {[%emt 0:00:08]} 22. b5 {[%emt 0:00:05]} Bb7 {[%emt 0:00:38]} 23. b6 {[%emt 0:03:02]} Qc6 {[%emt 0:03:29]} 24. Nd2 {[%emt 0:00:13]} Rec8 {[%emt 0:01:34]} 25. Nb5 {[%emt 0:01:12]} Ba6 {[%emt 0:04:19]} 26. c4 {[%emt 0:00:10]} Bxb5 {[%emt 0:00:27]} 27. cxb5 {[%emt 0:00:05]} Qc3 {[%emt 0:00:28]} 28. Qxc3 {[%emt 0:00:27]} Rxc3 {[%emt 0:00:02]} 29. Rxa4 {[%emt 0:00:06]} d5 {[%emt 0:04:44]} 30. Ra8 {[%emt 0:01:39]} Rcc8 {[%emt 0:02:22]} 31. b7 {[%emt 0:01:56]} Re8 {[%emt 0:00:19]} 32. exd5 {[%emt 0:00:29]} Rxb7 {[%emt 0:02:14]} 33. Rxe8 {[%emt 0:00:12]} Nxe8 {[%emt 0:00:02]} 34. b6 {[%emt 0:00:05]} f5 {[%emt 0:04:25]} 35. f3 {[%emt 0:00:29]} Nf6 {[%emt 0:02:46]} 36. Ra8 {[%emt 0:01:09]} Nd7 {[%emt 0:01:16]} 37. Nc4 {[%emt 0:00:36]} Kh7 {[%emt 0:02:13]} 38. Ra7 {[%emt 0:01:51]} Nc5 {[%emt 0:00:04]} 39. d6 {[%emt 0:00:07]} 1-0

[Event "53rd Mar Del Plata Open 2024"]
[Site "Mar Del Plata"]
[Date "2024.03.28"]
[Round "6.5"]
[White "Espinoza Palomino, Willyam"]
[Black "Marey, Mauro"]
[Result "1-0"]
[ECO "C12"]
[WhiteElo "2400"]
[BlackElo "2057"]
[Annotator "TA"]
[PlyCount "57"]
[EventDate "2024.03.23"]
[EventType "swiss"]
[EventCountry "ARG"]
[SourceTitle "playchess.com"]
[Source "ChessBase"]
[SourceQuality "1"]
[TimeControl "5400+30"]

{[%evp 20,57,0,0,0,0,62,-29,-8,0,0,-9,0,-28,-9,-19,0,0,55,58,61,0,0,-164,126,121,135,125,385,367,363,347,382,381,389,360,358,358,675,341]} 1. e4 {[%emt 0:00:05]} e6 {[%emt 0:00:11]} 2. d4 {[%emt 0:00:06]} d5 {[%emt 0:00:15]} 3. Nc3 {[%emt 0:00:31]} Nf6 {[%emt 0:00:29]} 4. Bg5 {[%emt 0:00:23]} Bb4 {[%emt 0:00:39]} 5. e5 {[%emt 0:00:27]} h6 {[%emt 0:00:13]} 6. Bd2 {[%emt 0:00:06]} Bxc3 {[%emt 0:00:24]} 7. bxc3 {[%emt 0:00:05]} Ne4 {[%emt 0:00:15]} 8. Qg4 {[%emt 0:00:31]} g6 {[%emt 0:00:58]} 9. Bd3 {[%emt 0:00:09]} Nxd2 {[%emt 0:00:43]} 10. Kxd2 {[%emt 0:00:04]} c5 {[%emt 0:00:11]} 11. h4 {[%emt 0:00:31]} c4 {[%emt 0:00:56][%cal Oh6h5] [#] Hoping for ...h5!} 12. Be2 {[%emt 0:00:57]} Bd7 {[%emt 0:05:11]} (12... Nc6 $11) 13. Qf4 {[%emt 0:01:38] White is more active.} ({Better is} 13. h5 $14 g5 14. Nh3) 13... Bc6 {[%emt 0:01:39] Black has an edge.} 14. Qe3 {[%emt 0:21:28]} Nd7 {[%emt 0:08:58]} 15. Nh3 {[%emt 0:13:49]} Qe7 {[%emt 0:11:29]} 16. h5 {[%emt 0:00:48]} g5 {[%emt 0:10:55]} 17. f4 {[%emt 0:03:16]} f6 {[%emt 0:03:06]} 18. fxg5 {[%emt 0:15:34]} fxe5 {[%emt 0:01:05]} ({Black should play} 18... fxg5 $11 19. Nf2 O-O-O) 19. dxe5 $14 {[%emt 0:03:27]} (19. gxh6 exd4 20. cxd4 e5 $16) 19... O-O-O {[%emt 0:01:45]} 20. Nf4 {[%emt 0:02:31]} (20. Qxa7 Nc5 $15) (20. gxh6 $14 d4 21. cxd4 (21. Qxd4 Nxe5 22. Rhd1 Rxd4+ 23. cxd4 Qb4+ 24. c3 Qb2+ 25. Ke1 Qxc3+ 26. Rd2 Qxa1+ $19)) 20... Nc5 $1 $11 {[%emt 0:05:48] ...Ne4+ would now be deadly.} 21. Bf3 {[%emt 0:15:32] [#]} (21. gxh6 $11 {and White stays safe.} Ne4+ 22. Ke1) 21... d4 $2 {[%emt 0:02:10]} (21... hxg5 $2 22. Ng6 Ne4+ 23. Bxe4 dxe4+ 24. Ke2 $18) (21... Ne4+ $1 $19 22. Ke2 Ng3+ (22... Qxg5 23. Nxe6 Ng3+ 24. Kd2 $11) 23. Kf2 Nxh1+ 24. Rxh1 Qxg5 (24... hxg5 25. Ng6 $16)) 22. cxd4 $16 {[%emt 0:02:28]} Rxd4+ {[%emt 0:11:34]} 23. Ke2 {[%emt 0:00:17]} (23. Qxd4 $6 Rd8 $14) 23... Bxf3+ $2 {[%emt 0:00:22][%mdl 8192] Loses the game.} (23... Rhd8 $16 24. Rhd1 (24. gxh6 Ne4 $16) 24... Rxd1 25. Rxd1 Rxd1 26. Kxd1 Qxg5) 24. gxf3 $18 {[%emt 0:00:11]} (24. Kxf3 $2 Rxf4+ (24... Re4 $2 25. Qd2 $19) 25. Qxf4 Rf8 $19 (25... hxg5 $2 26. Qd4 $18) (25... hxg5 $2 26. Qd4 $18)) 24... Rhd8 {[%emt 0:07:18]} 25. Rad1 {[%emt 0:00:29]} ({Weaker is} 25. gxh6 Rd2+ 26. Kf1 (26. Qxd2 $2 {is the wrong capture.} Rxd2+ 27. Kxd2 Qg5 $19) 26... b6 $18) 25... Rxd1 {[%emt 0:00:26]} 26. Rxd1 {[%emt 0:00:02]} Rxd1 {[%emt 0:00:13]} 27. Kxd1 {[%emt 0:00:02]} hxg5 {[%emt 0:03:37]} 28. Ng6 {[%emt 0:00:12]} Qd8+ {[%emt 0:00:13]} (28... Qd7+ 29. Ke2 Na4) 29. Qd2 {[%emt 0:19:21] Weighted Error Value: White=0.32/Black=0.75.  Loses game:     	White=1     	Black=1      Missed win:     	---       	Black=1      Mistake:       	White=2     	Black=3      Inaccurate:     	White=1     	---        OK:         	White=5     	Black=2      Best:        	White=1     	---        Strong:       	---       	Black=1} 1-0

[Event "53rd Mar Del Plata Open 2024"]
[Site "Mar Del Plata"]
[Date "2024.03.28"]
[Round "6.6"]
[White "Villordo, Matias"]
[Black "Villarreal, Agustin"]
[Result "0-1"]
[ECO "C45"]
[WhiteElo "2041"]
[BlackElo "2285"]
[Annotator "RC"]
[PlyCount "76"]
[EventDate "2024.03.23"]
[EventType "swiss"]
[EventCountry "ARG"]
[SourceTitle "playchess.com"]
[Source "ChessBase"]
[SourceQuality "1"]
[TimeControl "5400+30"]

1. e4 {[%emt 0:00:05]} e5 {[%emt 0:00:08]} 2. Nf3 {[%emt 0:00:32]} Nc6 {[%emt 0:00:02]} 3. d4 {[%emt 0:00:29]} exd4 {[%emt 0:00:01]} 4. Nxd4 {[%emt 0:00:22]} Nf6 {[%emt 0:00:22]} 5. Nxc6 {[%emt 1:31:32]} bxc6 6. Bd3 {[%emt 0:00:00]} d5 {[%emt 0:01:57]} 7. exd5 {[%emt 0:00:00]} cxd5 {[%emt 0:00:02]} 8. O-O {[%emt 0:00:00]} Be7 {[%emt 0:02:57]} 9. c4 {[%emt 0:00:00]} O-O {[%emt 0:11:34]} 10. cxd5 {[%emt 0:00:00]} Bb7 {[%emt 0:01:14]} 11. Bc4 {[%emt 0:00:00]} Nxd5 {[%emt 0:11:50]} 12. Qb3 {[%emt 0:00:00]} Nb6 {[%emt 0:09:01]} 13. Be2 {[%emt 0:00:00]} Bd6 {[%emt 0:07:56]} 14. Nd2 {[%emt 0:00:00]} Bd5 {[%emt 0:05:41]} 15. Qh3 {[%emt 0:00:00]} Be6 {[%emt 0:08:24]} 16. Bg4 {[%emt 0:00:00]} f5 {[%emt 0:00:39]} 17. Bf3 {[%emt 0:00:00]} Rb8 {[%emt 0:01:26]} 18. Nb3 {[%emt 0:00:00]} Qf6 {[%emt 0:03:07]} 19. Bc6 {[%emt 0:02:48]} f4 {[%emt 0:07:21]} 20. Qf3 {[%emt 0:01:13]} Nc4 {[%emt 0:00:52]} 21. Bd5 {[%emt 0:02:41]} Ne5 {[%emt 0:00:02]} 22. Qe4 {[%emt 0:00:45]} Rb4 {[%emt 0:03:15]} 23. Bxe6+ {[%emt 0:00:54]} Qxe6 {[%emt 0:00:02]} 24. Nd4 {[%emt 0:00:27]} Qf6 {[%emt 0:14:34]} 25. Qd5+ {[%emt 0:00:27]} Kh8 {[%emt 0:00:02]} 26. Nf3 {[%emt 0:00:40]} Qf7 {[%emt 0:05:40]} 27. Qd1 {[%emt 0:00:26]} Nxf3+ {[%emt 0:01:46]} 28. Qxf3 {[%emt 0:00:06]} Qg6 {[%emt 0:00:09]} 29. Re1 {[%emt 0:00:49]} Rd4 {[%emt 0:00:15]} 30. h3 {[%emt 0:00:41]} h5 {[%emt 0:00:51]} 31. b3 {[%emt 0:00:31]} Rd3 {[%emt 0:00:02]} 32. Qe4 {[%emt 0:00:26]} Qxe4 {[%emt 0:00:01]} 33. Rxe4 {[%emt 0:00:04]} Rd1+ {[%emt 0:00:05]} 34. Kh2 {[%emt 0:00:05]} f3+ {[%emt 0:00:00]} 35. g3 {[%emt 0:00:34]} Rf1 {[%emt 0:00:01]} 36. Rh4 {[%emt 0:01:20]} Rxf2+ {[%emt 0:00:08]} 37. Kh1 {[%emt 0:00:26]} Rf1+ {[%emt 0:00:43]} 38. Kh2 {[%emt 0:00:06]} f2 {[%emt 0:00:06]} 0-1